Cogmind - Beta 13 @@@ ROGUE MODE // 2024.05.04 @ 22:23:26 Player: Compound1080 Result: Self-destructed Performance ------------- Evolutions (2) 1000 Regions Visited (4) 800 Robots Destroyed (27) 135 Value Destroyed (882) 882 Prototype IDs (4) 80 Alien Tech Used (0) 0 Bonus (0) 0 TOTAL SCORE: 2897 Bonus ------- None Cogmind --------- Core Integrity 152/550 Matter 275/300 Energy 250/250 System Corruption 0% Temperature Cool (0) Movement Flying (180) Ox2 Location -8/Materials Parts ------- > --- POWER (1) -------- Ion Engine > --- PROPULSION (3) --- Improved Flight Unit > --- UTILITY (5) ------ Medium Storage Unit Advanced Visual Processing Unit Signal Interpreter > --- WEAPON (2) ------- (None) > --- INVENTORY (10) --- Aluminum Leg Armored Wheel Structural Scanner Light Armor Plating Grenade Launcher Rocket Launcher Datajack Hammer Peak State ------------ > --- POWER ------------ Improved Ion Engine > --- PROPULSION ------- Wheel Wheel Armored Wheel > --- UTILITY ---------- Medium Storage Unit Structural Scanner Advanced Visual Processing Unit Signal Interpreter Light Armor Plating > --- WEAPON ----------- Rocket Launcher Hammer > --- INVENTORY -------- Ion Engine Aluminum Leg Armored Wheel Improved Flight Unit Light Armor Plating Assault Rifle Grenade Launcher Datajack [Rating: 17] Favorites ----------- Power Light Nuclear Core Engine Improved Ion Engine Power Core Light Nuclear Core Propulsion Wheel Leg Aluminum Leg Wheel Wheel Flight Unit Improved Flight Unit Utility Medium Storage Unit Device Seismic Detector Storage Medium Storage Unit Processor Signal Interpreter Protection Light Armor Plating Weapon Assault Rifle Ballistic Gun Assault Rifle Launcher Rocket Launcher Impact Weapon Hammer Special Melee Weapon Datajack Build | -11 -10 -10 -9 -8 ------- Run | Yrd Mat Min Mat Mat Slots Evolved 4 | . . . 2 2 Power . | . . . . . Propulsion 1 | . . . . 1 Utility 3 | . . . 2 1 Weapon . | . . . . . Parts Attached 32 | 5 8 2 5 12 Power 4 | 1 . 1 1 1 Engine 3 | 1 . . 1 1 Core 1 | . . 1 . . Reactor . | . . . . . Propulsion 10 | 2 2 . . 6 Treads . | . . . . . Leg 3 | 2 . . . 1 Wheel 4 | . 2 . . 2 Hover . | . . . . . Flight 3 | . . . . 3 Utility 7 | 1 2 . 2 2 Device 2 | . 1 . 1 . Storage 2 | 1 1 . . . Processor 2 | . . . 1 1 Hackware . | . . . . . Protection 1 | . . . . 1 Artifact . | . . . . . Weapon 11 | 1 4 1 2 3 Energy Gun . | . . . . . Energy Cannon . | . . . . . Ballistic Gun 4 | 1 2 . . 1 Ballistic Cannon . | . . . . . Launcher 4 | . 1 1 . 2 Special Weapon . | . . . . . Impact Weapon 2 | . . . 2 . Slashing Weapon . | . . . . . Piercing Weapon . | . . . . . Special Melee Weapon 1 | . 1 . . . Unidentified Prototypes 1 | . . . . 1 Corrupted Parts 1 | . . . 1 . System Corruption 8 | . . . 8 . Parts Lost 12 | . 4 . . 8 Power 2 | . 1 . . 1 Propulsion 6 | . 2 . . 4 Utility 2 | . . . . 2 Weapon 2 | . 1 . . 1 Highest Loss Streak 6 | . 4 . . 6 To Critical Strikes . | . . . . . Average Slot Usage (%) 87 | . 75 97 98 88 Engine 3 | . 4 . . 8 Core 4 | . . 11 10 . Leg 3 | . 8 . . . Wheel 22 | . 19 28 22 23 Device 12 | . 8 14 22 10 Storage 12 | . 14 14 11 9 Processor 5 | . . . 9 16 Protection 1 | . . . . 7 Ballistic Gun 10 | . 18 15 . 3 Launcher 4 | . . 12 11 . Impact Weapon 3 | . . . 10 8 Naked Turns . | . . . . . Heaviest Build 25 | 9 14 22 25 25 Greatest Support 32 | 20 20 20 20 32 Greatest Overweight (x) 2 | 1 1 1 1 2 Average Overweight (x) . | . . . 1 . Largest Inventory Capacity 10 | 8 10 10 10 10 Average Capacity 9 | 7 9 10 10 10 Most Carried 10 | 5 8 10 10 10 Average Carried 7 | 2 6 9 8 8 Final Capacity 10 | 8 10 10 10 10 Final Carried 10 | 3 7 10 10 8 Class Distribution -------------------- 100% | Mutant Dominant Class ---------------- Mutant | -10/Materials Mutant | -10/Mines Mutant | -9/Materials Mutant | -8/Materials Resources | -11 -10 -10 -9 -8 ----------- Run | Yrd Mat Min Mat Mat Matter Collected 766 | 236 171 94 110 155 Remotely . | . . . . . Salvage Created 1003 | . 361 65 177 400 Parts 40 | . 14 5 10 11 Haulers Intercepted . | . . . . . Recyclers Shooed 1 | . 1 . . . Parts Field Recycled . | . . . . . Retrieved Matter . | . . . . . Parts Self-Destructed . | . . . . . Prevented . | . . . . . Kills | -11 -10 -10 -9 -8 ------- Run | Yrd Mat Min Mat Mat Combat Hostiles Destroyed 20 | . 5 2 5 8 Melee 1 | . . . . 1 Guns 4 | . 3 . . 1 AOE 10 | . 2 2 3 3 Classes Destroyed 9 | . 3 . 2 4 Worker 2 | . 1 . . 1 Builder 1 | . . . . 1 Recycler 3 | . 2 . . 1 Operator 1 | . . . . 1 Swarmer 1 | . . . . 1 Grunt 15 | . 5 2 2 6 Brawler 1 | . . . 1 . Sentry 2 | . . . 2 . Hunter 1 | . . . . 1 Best Kill Streak 6 | . 2 2 3 6 Combat Bots Only 3 | . 2 2 3 3 Max Kills in Single Turn 2 | . 2 2 1 2 Gunslinging . | . . . . . Exploded 2 | . 2 2 1 1 Melee 1 | . . . . 1 Uniques/NPCs Destroyed . | . . . . . Combat | -11 -10 -10 -9 -8 -------- Run | Yrd Mat Min Mat Mat Hostile Shots Fired 144 | . 37 1 11 95 Missed 37 | . 5 1 3 28 Damage Taken 1658 | . 416 26 105 1111 Core 479 | . 59 8 14 398 Absorbed by Shields . | . . . . . Core Remaining (%) 89 | 100 . 73 96 . Volleys Fired 100 | . 83 1 3 13 Largest 2 | . 2 2 1 1 Hottest 53 | . 50 53 33 33 Shots Fired 120 | . 102 2 3 13 Gun 107 | . 100 1 . 6 Cannon . | . . . . . Launcher 13 | . 2 1 3 7 Special . | . . . . . Kinetic 107 | . 100 1 . 6 Thermal . | . . . . . Explosive 13 | . 2 1 3 7 Electromagnetic . | . . . . . Robot Hit Streak 11 | . 11 1 4 5 Robot Miss Streak 3 | . 3 1 . 3 Penetration Max . | . . . . . Secondary Targets . | . . . . . Shots Hit Robots 106 | . 73 1 8 24 Core Hits 35 | . 19 2 4 10 Critical Kills 1 | . 1 . . . Critical Parts Destroyed 4 | . . . 2 2 Critical Strikes 5 | . 1 . 2 2 Destroy 1 | . 1 . . . Smash 4 | . . . 2 2 Melee Attacks 34 | . 2 . 8 24 Impact 32 | . . . 8 24 Slashing . | . . . . . Piercing . | . . . . . Sneak Attacks 4 | . 1 . . 3 Combat Hostiles . | . . . . . Follow-up Attacks . | . . . . . Damage Inflicted 2144 | . 749 148 316 931 Guns 698 | . 651 . . 47 Cannons . | . . . . . Explosions 793 | . 98 96 240 359 Melee 596 | . . . 76 520 Ramming 57 | . . 52 . 5 Kinetic 698 | . 651 . . 47 Thermal . | . . . . . Explosive 793 | . 98 96 240 359 Electromagnetic . | . . . . . Impact 596 | . . . 76 520 Slashing . | . . . . . Piercing . | . . . . . Highest Corruption 8 | . . . 8 . Average Corruption 8 | . . . 8 . Corruption Purged . | . . . . . Corruption Blocked . | . . . . . Effects 1 | . . . 1 . Message Errors 1 | . . . 1 . Overload Shots . | . . . . . Overflow Damage 248 | . . . 39 209 Projectiles 18 | . . . . 18 Explosions . | . . . . . Melee 230 | . . . 39 191 Knockbacks 4 | . . . . 4 Impact 3 | . . . . 3 Kinetic . | . . . . . Secondary 1 | . . . . 1 Self-Inflicted Damage 140 | . . 26 . 114 Shots 5 | . . . . 5 Rammed 6 | . . 3 . 3 Targets Rammed 6 | . . 3 . 3 Kicked . | . . . . . Crushed . | . . . . . Highest Temperature 27 | . 27 . 1 3 Average Temperature 7 | . 8 . 1 2 Received Heat Transfer 570 | . 258 . 39 273 Siege Activations . | . . . . . Robots Corrupted . | . . . . . Combat Hostiles . | . . . . . Parts Fried 9 | . . . 4 5 Impact Corruptions 11 | . . . 2 9 Robots Melted . | . . . . . Combat Hostiles . | . . . . . Parts Melted . | . . . . . Heat Transferred . | . . . . . Parts Sabotaged . | . . . . . Parts Stolen . | . . . . . Parts Stripped . | . . . . . Power Chain Reactions . | . . . . . Alert | -11 -10 -10 -9 -8 ------- Run | Yrd Mat Min Mat Mat Peak Influence 335 | . 115 102 227 335 Initial 95 | . . 27 39 95 Average 103 | . 48 91 141 193 Maximum Alert Level 1 | . . . 1 1 Low Security (%) 86 | 100 100 100 91 45 Level 1 13 | . . . 8 54 Level 2 . | . . . . . Level 3 . | . . . . . Level 4 . | . . . . . Level 5 . | . . . . . High Security . | . . . . . Max Security . | . . . . . Squads Dispatched 4 | . 1 . . 3 Investigation . | . . . . . Extermination . | . . . . . Reinforcement 4 | . 1 . . 3 Assault . | . . . . . Garrison . | . . . . . Intercept . | . . . . . Searches Triggered . | . . . . . Construction Impeded . | . . . . . Haulers Reinforced . | . . . . . Active Scanning Responses . | . . . . . Cargo Convoy Interrupts . | . . . . . Stealth | -11 -10 -10 -9 -8 --------- Run | Yrd Mat Min Mat Mat Distress Signals 1 | . . . . 1 Communications Jammed . | . . . . . Distress Signals . | . . . . . Times Spotted 39 | . 11 2 5 21 Peak Tracking Total 8 | . 3 2 3 8 Tactical Retreats 2 | . 1 . . 1 Traps | -11 -10 -10 -9 -8 ------- Run | Yrd Mat Min Mat Mat Traps Triggered . | . . . . . Indirectly . | . . . . . Trap Hack Attempts . | . . . . . Triggered . | . . . . . Disarmed . | . . . . . Reprogrammed . | . . . . . Reused . | . . . . . Traps Extracted . | . . . . . Installed . | . . . . . Triggered . | . . . . . Machines | -11 -10 -10 -9 -8 ---------- Run | Yrd Mat Min Mat Mat Machines Disabled 2 | . . . . 2 Max in Single Turn 1 | . . . . 1 Machines Repaired . | . . . . . Machines Dismantled . | . . . . . Machines Sabotaged . | . . . . . Overloaded Fab Kills . | . . . . . Hacking | -11 -10 -10 -9 -8 --------- Run | Yrd Mat Min Mat Mat Machines Accessed 13 | . 6 . 2 5 Terminals 13 | . 6 . 2 5 Fabricators . | . . . . . Repair Stations . | . . . . . Recycling Units . | . . . . . Scanalyzers . | . . . . . Garrison Access . | . . . . . Total Hacks 38 | . 17 . 4 17 Successful 26 | . 9 . 3 14 Failed 12 | . 8 . 1 3 Catastrophic 4 | . 3 . . 1 Database Lockouts . | . . . . . Manual . | . . . . . Terminals 38 | . 17 . 4 17 Fabricators . | . . . . . Repair Stations . | . . . . . Recycling Units . | . . . . . Scanalyzers . | . . . . . Garrison Access . | . . . . . Terminal Hacks 26 | . 9 . 3 14 Record 9 | . 3 . 2 4 Prototype ID Bank 2 | . 1 . . 1 Scanalyzer Index 1 | . 1 . . . Alert Level 3 | . 1 . . 2 Unreport Threat 2 | . 1 . . 1 Locate Traps 2 | . 1 . 1 . Dispatch Records 2 | . 1 . . 1 Maintenance Status 2 | . . . . 2 Surveillance Status 1 | . . . . 1 Investigation Status 1 | . . . . 1 Zone Layout 1 | . . . . 1 Fabricator Hacks . | . . . . . Repair Station Hacks . | . . . . . Recycling Unit Hacks . | . . . . . Scanalyzer . | . . . . . Garrison Access Hacks . | . . . . . Unauthorized Hacks . | . . . . . Terminals . | . . . . . Fabricators . | . . . . . Repair Stations . | . . . . . Recycling Units . | . . . . . Scanalyzers . | . . . . . Garrison Access . | . . . . . Data Cores Recovered . | . . . . . Used . | . . . . . Hacking Detections 8 | . 4 . 2 2 Full Trace Events . | . . . . . Feedback Events . | . . . . . Feedback Blocked . | . . . . . Robot Schematics Acquired . | . . . . . Robots Built . | . . . . . Authchips . | . . . . . Time . | . . . . . Total Robot Build Rating . | . . . . . Part Schematics Acquired . | . . . . . Parts Built . | . . . . . Authchips . | . . . . . Time . | . . . . . Total Part Build Rating . | . . . . . Parts Repaired . | . . . . . Time . | . . . . . Parts Recycled . | . . . . . Recycled Matter . | . . . . . Retrieved Matter . | . . . . . Retrieved Components . | . . . . . Parts Scanalyzed . | . . . . . Part Schematics Acquired . | . . . . . Parts Damaged . | . . . . . Bothacking | -11 -10 -10 -9 -8 ------------ Run | Yrd Mat Min Mat Mat Used RIF Installer . | . . . . . Robots Hacked 1 | . 1 . . . Non-combat . | . . . . . Combat 1 | . 1 . . . Robot Hacks Applied 1 | . 1 . . . parse_system 1 | . 1 . . . Relay Couplers Released . | . . . . . Fabnet Peak Effective % . | . . . . . Robots Rewired . | . . . . . Allies Hacked . | . . . . . Hacks Repelled . | . . . . . Allies | -11 -10 -10 -9 -8 -------- Run | Yrd Mat Min Mat Mat Total Allies . | . . . . . Largest Group . | . . . . . Highest-Rated Group . | . . . . . Highest-Rated Ally . | . . . . . Total Orders . | . . . . . Ally Attacks . | . . . . . Total Damage . | . . . . . Kills . | . . . . . Allies Corrupted . | . . . . . Allies Melted . | . . . . . Intel | -11 -10 -10 -9 -8 ------- Run | Yrd Mat Min Mat Mat Robot Analysis Total . | . . . . . Derelict Logs Recovered . | . . . . . Drone Launches . | . . . . . Drone Recoveries . | . . . . . Exploration | -11 -10 -10 -9 -8 ------------- Run | Yrd Mat Min Mat Mat Turns Passed 1684 | 52 627 338 303 364 Spaces Moved 1316 | 39 472 353 191 261 Core 16 | 13 3 . . . Treads . | . . . . . Legs 97 | 26 71 . . . Wheels 1196 | . 398 353 191 254 Hover . | . . . . . Flight 7 | . . . . 7 Fastest Speed 50 | 50 80 80 95 83 Average Speed 89 | 103 86 92 95 86 Slowest Speed 180 | 120 120 95 95 180 Overloaded Moves . | . . . . . Propulsion Burnouts . | . . . . . Robots Hopped . | . . . . . Cave-ins Triggered . | . . . . . Exploration Rate (%) 36 | 4 57 69 19 34 Regions Visited 4 Branch Regions 1 Pre-discovered Areas . | . . . . . Known Exits Taken 1 | . . . 1 . Unknown Exits Taken 3 | 1 1 1 . . Scrap Searched 1 | . . 1 . . Spaces Dug 4 | . . . . 4 Terrain Destroyed 115 | . 9 12 35 59 Melee 4 | . . . . 4 Projectile . | . . . . . AOE 111 | . 9 12 35 55 Terrain Rammed . | . . . . . Walls Destroyed . | . . . . . Machines Disabled . | . . . . . Actions | -11 -10 -10 -9 -8 --------- Run | Yrd Mat Min Mat Mat Total 1657 | 51 600 362 298 346 Wait 128 | . 26 . 79 23 Move 1312 | 38 471 352 190 261 Hop . | . . . . . Pick Up 29 | 8 9 4 6 2 Fast Attach 1 | . . . 1 . Attach 28 | 5 6 1 4 12 Detach 11 | . 1 . 2 8 Swap 3 | . 2 1 . . Drop 5 | . . . 5 . Fire 100 | . 83 1 3 13 Melee 34 | . 2 . 8 24 Ram 6 | . . 3 . 3 Kick . | . . . . . Crush . | . . . . . Escape Stasis . | . . . . . Rewire . | . . . . . Trap . | . . . . . Miscellaneous . | . . . . . Route ------- -11/Scrapyard -10/Materials (discovered 2 exits: *Mat / [*Min]) -10/Mines -9/Materials -8/Materials History --------- Turn | Location | Event 8 | -11/Scrapyard | Discovered new exit (range 16) 53 | -11/Scrapyard | Entered Materials 273 | -10/Materials | Lost 4 parts (1p2n1w) 305 | -10/Materials | Discovered new exit (range 15) 307 | -10/Materials | Build established: Mutant 490 | -10/Materials | Discovered new exit (range 16) 680 | -10/Materials | Entered Mines 693 | -10/Mines | Received a Rocket Launcher from a helpful Derelict 1014 | -10/Mines | Discovered new exit (range 4) 1018 | -10/Mines | Entered Materials 1018 | -9/Materials | Evolved 2 slots: Utility x2 1250 | -9/Materials | Discovered new exit (range 16) 1264 | -9/Materials | Identified exit to Materials 1321 | -9/Materials | Entered another Materials area 1321 | -8/Materials | Evolved 2 slots: Propulsion x1, Utility x1 1640 | -8/Materials | Core integrity fell below 50% 1673 | -8/Materials | Lost 6 parts (1p3n1u1w) 1685 | -8/Materials | Self-destructed Last Messages --------------- 01610_ Wheel destroyed. 01613_ K-01 Serf collects debris. 01618_ Wheel destroyed. 01620_ Imp. Ion Engine destroyed. 01622_ G-47 Trooper destroyed. 01622_ K-01 Serf collects debris. 01628_ Acquired 23 matter. 01628_ K-01 Serf collects debris. 01631_ Lgt. Armor Plating destroyed. 01631_ Assault Rifle destroyed. 01634_ ALERT: Hostiles spotted, dispatching reinforcements to Terminal M002. 01642_ Arm. Wheel destroyed. 01642_ Critical hit (Burn: +37). 01647_ R-06 Scavenger collects Aluminum Leg. 01662_ W-25 Informer knocked back. 01676_ Slammed into W-25 Informer. 01678_ Flight Unit destroyed. 01679_ Slammed into W-25 Informer. 01683_ Penetrated by Slug. Map ----- +----------------------------------------------------+ | ?????????????????????????????????????????????? | | ?????????????????????????????????????????????? | | ?????????????????????????????????????????????? | | ?????????????????????????????????????????????? | | ?????????????????????????????????????????????? | | ?????????????????????????????????????????????? | | ?????????????????????????????????????????????? | | ?????????????????????????????????????????????? | | ?????????????????????????????????????????????? | | ??????? ??????????????????????????????????? | | ???????####??????????????????????????????????? | | ???????# ??????????????????????????????????? | | ??????"# ""?? ##????????????????????????????? | | ??????"# """"" ##????????????????????????????? | | ??????"# """"" # ????????????????????????????? | | ??????"# """"" # ????????????????????????????? | | ??????"# """ ????H??????????????????????????? | | ?????? # ???????????????????????????????? | | ?????? # ??????????????????????##????????? | | ?????? # "??????????????????????]]#????????? | | ??????##=! ?????????????????????[[]]#????????? | | ??????##%% ###########????? #????????? | | ???#####+##################### ## #???? | | ??######% h g #???? | | ??###! g #???? | | ??##! w @ o #???? | | ??##! ###/############# ###########?????????? | | ??##! # ########## ###?????????????????? | | ??##! " """" ##??????## ##??????????????????? | | ??###! # """" ##??????## ##??????????????????? | | ??###### """" ##??????## ##??????????????????? | | ######## ##??????## ##??????????????????? | | ######## ##??????## ##??????????????????? | | # #####+###?????### ###?????????????????? | | # ##### ########### ###?????????????????? | | # ##?## ########## ##?????????????????? | | # """ ##?## T ##?????????????????? | | # """ ##?## ########## ####???????????????? | | # """ ##### ###########+#####???????????????? | | ######+##### # ! # ##???????????????? | | + "T" # """ ##???????????????? | | # ] # """ ##???????????????? | | """" ######### """ ##???????????????? | | """" ######## ##???????????????? | | """" ##????## ##???????????????? | | " " ##????##########???????????????? | | "T" ##????##########???????????????? | | """ ##?????????????????????????????? | | ##?????????????????????????????? | | ##?????????????????????????????? | +----------------------------------------------------+ Best States ------------- Heat Dissipation 31 Energy Generation 14 Energy Capacity 265 Matter Stores 300 Matter Capacity 300 Sight Range 20 Terrain Scan Density 10 Armor Coverage 150 Evasion (%) 55 Item Schematics ----------------- None Robot Schematics ------------------ None Fabricated ------------ Nothing Alien Tech Used ----------------- None Achievements -------------- None Challenges ------------ None Game ------ Seed MicroFortressAnalyzer Manual? 0 Play Time 00:30:57 Cumulative 4.8 hours Start 2024.05.04 @ 21:54:27 End 2024.05.04 @ 22:23:26 Sessions 1 Manual Loads 0 Difficulty Rogue Special Mode None Game No. 11 Rogue 11 Adventurer 0 Explorer 0 Win Type - Total 0 Types 0/0/0/0/0/0/0/0/0 Lore% 12 Gallery% 8 Achievement% 9 Wizard Run 0 Options --------- Layout 1 ASCII 0 Keyboard 0 Movement Mouse Keybinds 0 Fullscreen 2 Font 24/Smallcaps Map View 50x35 Zoom Use 0% Tactical HUD 1 Map Filters NONE Filters NONE Steam 1 RUN: 7c9a22c1-ea25-4412-b572-aae601ed81ac